Cogmind - Beta 12 --- EXPLORER MODE // 2023.11.30 @ 01:58:14 Player: Ki Result: Destroyed by as-80125 with Assembled Blade Performance ------------- Evolutions (0) 0 Regions Visited (0) 0 Robots Destroyed (0) 0 Value Destroyed (0) 0 Prototype IDs (0) 0 Alien Tech Used (0) 0 Bonus (0) 0 TOTAL SCORE: 0 Bonus ------- None Cogmind --------- Core Integrity 0/250 Matter 206/300 Energy 100/100 System Corruption 2% Temperature Cool (0) Movement Treading (160) Location -11/Junkyard Parts ------- > --- POWER (1) -------- (None) > --- PROPULSION (2) --- Light Treads > --- UTILITY (2) ------ Medium Storage Unit Light Armor Plating > --- WEAPON (2) ------- Light Assault Rifle > --- INVENTORY (10) --- Targeting Computer Power Shielding Peak State ------------ > --- POWER ------------ Light Ion Engine > --- PROPULSION ------- Aluminum Leg Aluminum Leg > --- UTILITY ---------- Medium Storage Unit Targeting Computer > --- WEAPON ----------- Assault Rifle Light Assault Rifle > --- INVENTORY -------- Light Ion Engine Power Shielding Light Armor Plating Light Assault Rifle [Rating: 7] Favorites ----------- Power Light Ion Engine Engine Light Ion Engine Propulsion Aluminum Leg Treads Light Treads Leg Aluminum Leg Utility Medium Storage Unit Storage Medium Storage Unit Processor Targeting Computer Protection Light Armor Plating Weapon Light Assault Rifle Ballistic Gun Light Assault Rifle Build | -11 ------- Run | Jun Slots Evolved . | . Power . | . Propulsion . | . Utility . | . Weapon . | . Parts Attached 12 | 12 Power 2 | 2 Engine 2 | 2 Core . | . Reactor . | . Propulsion 4 | 4 Treads 2 | 2 Leg 2 | 2 Wheel . | . Hover . | . Flight . | . Utility 3 | 3 Device . | . Storage 1 | 1 Processor 1 | 1 Hackware . | . Protection 1 | 1 Artifact . | . Weapon 3 | 3 Energy Gun . | . Energy Cannon . | . Ballistic Gun 3 | 3 Ballistic Cannon . | . Launcher . | . Special Weapon . | . Impact Weapon . | . Slashing Weapon . | . Piercing Weapon . | . Special Melee Weapon . | . Unidentified Prototypes . | . Parts Lost 7 | 7 Power 2 | 2 Propulsion 2 | 2 Utility 1 | 1 Weapon 2 | 2 Highest Loss Streak 6 | 6 To Critical Strikes . | . Average Slot Usage (%) . | . Naked Turns . | . Heaviest Build 17 | 17 Greatest Support 20 | 20 Greatest Overweight (x) 3 | 3 Average Overweight (x) . | . Largest Inventory Capacity 10 | 10 Average Capacity 9 | 9 Most Carried 10 | 10 Average Carried 6 | 6 Final Capacity 10 | 10 Final Carried 2 | 2 Class Distribution -------------------- None Dominant Class ---------------- None Resources | -11 ----------- Run | Jun Matter Collected 221 | 221 Remotely . | . Salvage Created 20 | 20 Parts . | . Haulers Intercepted . | . Recyclers Shooed . | . Parts Field Recycled . | . Retrieved Matter . | . Parts Self-Destructed . | . Prevented . | . Kills | -11 ------- Run | Jun Combat Hostiles Destroyed 1 | 1 Guns 1 | 1 Classes Destroyed 1 | 1 Assembled 1 | 1 Best Kill Streak 1 | 1 Combat Bots Only 1 | 1 Max Kills in Single Turn 1 | 1 Gunslinging . | . Exploded . | . Melee . | . Uniques/NPCs Destroyed . | . Combat | -11 -------- Run | Jun Damage Taken 1032 | 1032 Core 266 | 266 Absorbed by Shields . | . Core Remaining (%) . | . Volleys Fired 15 | 15 Largest 2 | 2 Hottest 40 | 40 Shots Fired 20 | 20 Gun 20 | 20 Cannon . | . Launcher . | . Special . | . Kinetic 20 | 20 Thermal . | . Explosive . | . Electromagnetic . | . Robot Hit Streak 10 | 10 Robot Miss Streak 1 | 1 Penetration Max . | . Secondary Targets . | . Shots Hit Robots 19 | 19 Core Hits 6 | 6 Critical Kills . | . Critical Parts Destroyed . | . Critical Strikes . | . Melee Attacks . | . Impact . | . Slashing . | . Piercing . | . Sneak Attacks . | . Combat Hostiles . | . Follow-up Attacks . | . Damage Inflicted 178 | 178 Guns 178 | 178 Cannons . | . Explosions . | . Melee . | . Ramming . | . Kinetic 178 | 178 Thermal . | . Explosive . | . Electromagnetic . | . Impact . | . Slashing . | . Piercing . | . Highest Corruption 2 | 2 Average Corruption 1 | 1 Corruption Purged . | . Corruption Blocked . | . Overload Shots . | . Overflow Damage . | . Projectiles . | . Explosions . | . Melee . | . Knockbacks . | . Impact . | . Kinetic . | . Secondary . | . Self-Inflicted Damage . | . Shots . | . Rammed . | . Targets Rammed . | . Kicked . | . Crushed . | . Highest Temperature 23 | 23 Average Temperature 9 | 9 Received Heat Transfer 60 | 60 Siege Activations . | . Robots Corrupted . | . Combat Hostiles . | . Parts Fried . | . Impact Corruptions . | . Robots Melted . | . Combat Hostiles . | . Parts Melted . | . Heat Transferred . | . Parts Sabotaged . | . Parts Stolen . | . Parts Stripped . | . Power Chain Reactions . | . Missiles Intercepted . | . Alert | -11 ------- Run | Jun Peak Influence . | . Initial . | . Average . | . Maximum Alert Level . | . Low Security (%) 100 | 100 Level 1 . | . Level 2 . | . Level 3 . | . Level 4 . | . Level 5 . | . High Security . | . Max Security . | . Squads Dispatched . | . Investigation . | . Extermination . | . Reinforcement . | . Assault . | . Garrison . | . Intercept . | . Searches Triggered . | . Construction Impeded . | . Haulers Reinforced . | . Active Scanning Responses . | . Cargo Convoy Interrupts . | . Stealth | -11 --------- Run | Jun Distress Signals . | . Communications Jammed . | . Distress Signals . | . Times Spotted 13 | 13 Peak Tracking Total 9 | 9 Tactical Retreats . | . Traps | -11 ------- Run | Jun Traps Triggered . | . Indirectly . | . Trap Hack Attempts . | . Triggered . | . Disarmed . | . Reprogrammed . | . Reused . | . Traps Extracted . | . Installed . | . Triggered . | . Machines | -11 ---------- Run | Jun Machines Disabled . | . Max in Single Turn . | . Machines Repaired . | . Machines Sabotaged . | . Overloaded Fab Kills . | . Hacking | -11 --------- Run | Jun Machines Accessed . | . Terminals . | . Fabricators . | . Repair Stations . | . Recycling Units . | . Scanalyzers . | . Garrison Access . | . Total Hacks . | . Successful . | . Failed . | . Catastrophic . | . Database Lockouts . | . Manual . | . Terminals . | . Fabricators . | . Repair Stations . | . Recycling Units . | . Scanalyzers . | . Garrison Access . | . Terminal Hacks . | . Fabricator Hacks . | . Repair Station Hacks . | . Recycling Unit Hacks . | . Scanalyzer . | . Garrison Access Hacks . | . Unauthorized Hacks . | . Terminals . | . Fabricators . | . Repair Stations . | . Recycling Units . | . Scanalyzers . | . Garrison Access . | . Data Cores Recovered . | . Used . | . Hacking Detections . | . Full Trace Events . | . Feedback Events . | . Feedback Blocked . | . Robot Schematics Acquired . | . Robots Built . | . Authchips . | . Time . | . Total Robot Build Rating . | . Part Schematics Acquired . | . Parts Built . | . Authchips . | . Time . | . Total Part Build Rating . | . Parts Repaired . | . Time . | . Parts Recycled . | . Recycled Matter . | . Retrieved Matter . | . Retrieved Components . | . Parts Scanalyzed . | . Part Schematics Acquired . | . Parts Damaged . | . Bothacking | -11 ------------ Run | Jun Used RIF Installer . | . Robots Hacked . | . Non-combat . | . Combat . | . Robot Hacks Applied . | . Relay Couplers Released . | . Fabnet Peak Effective % . | . Robots Rewired . | . Allies Hacked . | . Hacks Repelled . | . Allies | -11 -------- Run | Jun Total Allies . | . Largest Group . | . Highest-Rated Group . | . Highest-Rated Ally . | . Total Orders . | . Ally Attacks . | . Total Damage . | . Kills . | . Allies Corrupted . | . Allies Melted . | . Intel | -11 ------- Run | Jun Robot Analysis Total . | . Derelict Logs Recovered . | . Drone Launches . | . Drone Recoveries . | . Exploration | -11 ------------- Run | Jun Turns Passed 1989 | 1989 Spaces Moved 389 | 389 Core 33 | 33 Treads 2 | 2 Legs 354 | 354 Wheels . | . Hover . | . Flight . | . Fastest Speed 50 | 50 Average Speed 119 | 119 Slowest Speed 200 | 200 Overloaded Moves . | . Propulsion Burnouts . | . Robots Hopped . | . Cave-ins Triggered . | . Exploration Rate (%) 23 | 23 Regions Visited . Branch Regions . Pre-discovered Areas . | . Known Exits Taken . | . Unknown Exits Taken . | . Scrap Searched . | . Spaces Dug . | . Terrain Destroyed . | . Melee . | . Projectile . | . AOE . | . Terrain Rammed . | . Walls Destroyed . | . Machines Disabled . | . Actions | -11 --------- Run | Jun Total 1898 | 1898 Wait 1469 | 1469 Move 389 | 389 Hop . | . Pick Up 13 | 13 Fast Attach 1 | 1 Attach 11 | 11 Detach . | . Swap . | . Drop . | . Fire 15 | 15 Melee . | . Ram . | . Kick . | . Crush . | . Escape Stasis . | . Rewire . | . Trap . | . Miscellaneous . | . Route ------- -11/Junkyard (discovered 1 exit: *Mat) History --------- Turn | Location | Event 9 | -11/Junkyard | Identified exit to Materials 9 | -11/Junkyard | Discovered exit to Materials (range 15) 1898 | -11/Junkyard | Assembled infested the area 1974 | -11/Junkyard | Core integrity fell below 50% 1983 | -11/Junkyard | Core integrity fell below 20% 1990 | -11/Junkyard | Destroyed by as-80125 with Assembled Blade Last Messages --------------- 01935_ The unstable cave ceiling collapses. 01936_ K-01 Serf collects debris. 01942_ The unstable cave ceiling collapses. 01945_ K-01 Serf collects debris. 01949_ The unstable cave ceiling collapses. 01951_ K-01 Serf system corrupted by crushing effect. 01952_ K-01 Serf destroyed. 01960_ Aluminum Leg destroyed. 01960_ System corrupted by crushing effect (+1). 01965_ Targeting Computer destroyed. 01965_ System corrupted by crushing effect (+1). 01966_ Assault Rifle destroyed. 01972_ as-11082 destroyed. 01973_ Aluminum Leg destroyed. 01975_ Lgt. Assault Rifle destroyed. 01981_ Lgt. Treads severed. 01981_ as-35114 destroyed. 01983_ Lgt. Ion Engine destroyed. 01986_ Acquired 15 matter. 01987_ as-76103 destroyed. Map ----- +----------------------------------------------------+ | ?????????????????????????????????????????????????? | | ?????????????????????????????????????????????????? | | ?????????????????????????????????????????????????? | | ?????????????????????????????????????????????????? | | ?????????????????????????????????????????????????? | | ?????????????????????????????????????????????????? | | ?????????????????????????????????????????????????? | | ?????????????????????????????????????????????????? | | ?????????????????????????????????????????????????? | | ?????????????????????????????????????????????????? | | ?????????????????????????????????????????????????? | | ????????????????????????######???????????????????? | | ????????????????????????# #???????????????????? | | ????????????????????????# #???????????????????? | | ????????????????????????#! #???????????????????? | | ????????????????????????# #??#####????????????? | | ?????????????????????????# #??## #????????????? | | ?????????????????????????# #??# #????????????? | | ?????????????????????????# #??# #????????????? | | ?????????????????????????# #??# #????????????? | | ?????????????????????????#a #??# #????????????? | | ?????????????????????????#%*#??# #????????????? | | ??????????????????????#### #### #????????????? | | ?????????##########???# %a a # #????????????? | | ?????????# #???# aaaa # #????????????? | | ###??????# #???# a@ ## ###### ######## | | ######## ##### t | | | | # ###### ######## | | ### ### ##### < #??###??????? | | ##?###?# #???# #???????????? | | #??????# #???#### ## #???????????? | | #??????#### ####??????###### #???????????? | | #?????????# #????????? # #???????????? | | #?????????# #???????? ## #???????????? | | ###?????????# #??????? #?## #???????????? | | ????????????# ######## #???####???????????? | | ????????????# # # #??????????????????? | | ????????????# # # #??????????????????? | | ?????######## # # #??????????????????? | | ?????# # # # #??????????????????? | | ?????# # # # #??????????????????? | | ?????# # ???????????????????? | | ?????# # ########## ####???????????????????? | | ?????# # #???????????????????? | | ?????# # ########????????????? | | ?????###################### # #????????????? | | ??????????????????????????# # #????????????? | | ??????????????????????????# # #????????????? | | ??????????????????????????# #????????????? | +----------------------------------------------------+ Best States ------------- Heat Dissipation 25 Energy Generation 10 Energy Capacity 125 Matter Stores 223 Matter Capacity 300 Sight Range 16 Terrain Scan Density 10 Armor Coverage 150 Resistance: KI 35 Resistance: TH 35 Resistance: EX 35 Resistance: EM 35 Resistance: I 35 Resistance: S 35 Resistance: P 35 Evasion (%) 55 Targeting Accuracy 5 Recoil Reduction 2 Offensive Hacking 20 Item Schematics ----------------- None Robot Schematics ------------------ None Fabricated ------------ Nothing Alien Tech Used ----------------- None Achievements -------------- None Challenges ------------ None Game ------ Seed TitaniumForceShielding Manual? 0 Play Time 00:11:26 Cumulative 9.1 hours Start 2023.11.29 @ 22:26:38 End 2023.11.30 @ 01:58:14 Sessions 0 Manual Loads 0 Difficulty Explorer Special Mode None Game No. 9 Rogue 7 Adventurer 0 Explorer 2 Win Type - Total 0 Types 0/0/0/0/0/0/0/0/0 Lore% 8 Gallery% 16 Achievement% 16 Wizard Run 0 Options --------- ASCII 0 Keyboard 0 Movement Arrows Keybinds 0 Fullscreen 2 Font 18/SmallcapsGlow Map View 76x50 Tactical HUD 1 Map Filters NONE Filters NONE Steam 1 RUN: 6ed6e85f-6c84-4a63-9bcf-7212a7b09909